Cogmind - Beta 15 @@@ ROGUE MODE // 2025.05.19 @ 15:21:47 Player: Darcyisverycute Result: Destroyed by B-75 Beast with Heavy Plasma Cannon Performance ------------- Evolutions (2) 1000 Regions Visited (6) 1200 Robots Destroyed (124) 620 Value Destroyed (4983) 4983 Prototype IDs (3) 60 Alien Tech Used (0) 0 Bonus (1821) 1821 TOTAL SCORE: 9684 Bonus ------- High Alert Combat Kills 1121 Entered Garrisons 200 Used RIF Installer 500 Cogmind --------- Core Integrity 0/550 Matter 114/300 Energy 280/290 System Corruption 6% Temperature Cool (27) Movement Walking (120) Location -8/Garrison Parts ------- > --- POWER (1) -------- Improved Deuterium Engine > --- PROPULSION (4) --- Carbon-fiber Leg Carbon-fiber Leg Flexi-carbon Leg Flexi-carbon Leg > --- UTILITY (3) ------ High-capacity Storage Unit Layered Light Armor Plating Layered Light Armor Plating > --- WEAPON (3) ------- Heavy Laser Light Assault Rifle (fused) Axe > --- INVENTORY (20) --- Flexi-carbon Leg Advanced Heat Sink High-capacity Storage Unit Compact Battery (200) High-capacity Matter Pod (200) Improved Terrain Scanner Light Armor Plating Layered Light Armor Plating Graphene Brace Relay Coupler [NC] (32) Relay Coupler [NC] (41) Relay Coupler [Grunt] (32) Relay Coupler [Sentry] (20) Relay Coupler [Sentry] (19) Relay Coupler [Sentry] (33) Relay Coupler [Behemoth] (11) Improved Trap Extractor (0/6) Assault Rifle Light Assault Rifle Heavy Assault Rifle Peak State ------------ > --- POWER ------------ Improved Deuterium Engine > --- PROPULSION ------- Carbon-fiber Leg Carbon-fiber Leg Flexi-carbon Leg Flexi-carbon Leg > --- UTILITY ---------- High-capacity Storage Unit Layered Light Armor Plating Layered Light Armor Plating > --- WEAPON ----------- Heavy Laser Light Assault Rifle Axe > --- INVENTORY -------- Flexi-carbon Leg Advanced Heat Sink High-capacity Storage Unit Compact Battery High-capacity Matter Pod Improved Terrain Scanner Light Armor Plating Layered Light Armor Plating Graphene Brace Relay Coupler [NC] Relay Coupler [NC] Relay Coupler [Grunt] Relay Coupler [Sentry] Relay Coupler [Sentry] Relay Coupler [Sentry] Relay Coupler [Behemoth] Improved Trap Extractor Assault Rifle Light Assault Rifle Heavy Assault Rifle [Rating: 43] Favorites ----------- Power Ion Engine Engine Ion Engine Power Core Micro Nuclear Core Propulsion Light Treads Treads Light Treads Leg Aluminum Leg Hover Unit Aerolev Unit Utility High-capacity Storage Unit Device Improved Heat Sink Storage High-capacity Storage Unit Processor Advanced Targeting Computer Protection Layered Light Armor Plating Weapon Medium Laser Energy Gun Medium Laser Energy Cannon EM Pulse Cannon Ballistic Gun Heavy Assault Rifle Launcher Grenade Launcher Special Weapon Mining Laser Slashing Weapon Axe Build | -11 -10 -10 -10 -9 -8 -8 ------- Run | Yrd Mat Min Exi Min Mat Gar Slots Evolved 4 | . . . . . 4 . Power . | . . . . . . . Propulsion 2 | . . . . . 2 . Utility 1 | . . . . . 1 . Weapon 1 | . . . . . 1 . Parts Attached 81 | 7 4 . 1 1 36 32 Power 8 | 1 . . . . 3 4 Engine 4 | 1 . . . . 1 2 Core 4 | . . . . . 2 2 Reactor . | . . . . . . . Propulsion 34 | 2 . . . . 19 13 Treads 16 | 2 . . . . 7 7 Leg 17 | . . . . . 11 6 Wheel . | . . . . . . . Hover 1 | . . . . . 1 . Flight . | . . . . . . . Utility 14 | 2 2 . 1 . 4 5 Device 4 | 1 1 . . . 2 . Storage 3 | 1 1 . 1 . . . Processor 1 | . . . . . 1 . Hackware . | . . . . . . . Protection 6 | . . . . . 1 5 Artifact . | . . . . . . . Weapon 25 | 2 2 . . 1 10 10 Energy Gun 8 | 2 1 . . . 2 3 Energy Cannon 2 | . . . . . 2 . Ballistic Gun 12 | . . . . . 6 6 Ballistic Cannon . | . . . . . . . Launcher 1 | . 1 . . . . . Special Weapon 1 | . . . . 1 . . Impact Weapon . | . . . . . . . Slashing Weapon 1 | . . . . . . 1 Piercing Weapon . | . . . . . . . Special Melee Weapon . | . . . . . . . Unidentified Prototypes 3 | . . . . . 3 . Parts Lost 31 | . . . . 1 11 19 Power 4 | . . . . . 2 2 Propulsion 12 | . . . . . 4 8 Utility 2 | . . . . . 1 1 Weapon 13 | . . . . 1 4 8 Highest Loss Streak 5 | . . . . 1 3 5 To Critical Strikes . | . . . . . . . Average Backups 14 | 1 8 10 10 11 16 19 Power . | . 1 1 1 1 . . Propulsion 2 | . . 1 1 1 6 1 Utility 7 | . 3 4 4 5 6 14 Weapon 3 | . 3 4 4 3 3 2 Tool/Special . | . . . . . . . Unused Backups 35 | . 1 . 1 . 10 23 Power 1 | . . . . . 1 . Propulsion 10 | . . . . . 6 4 Utility 22 | . 1 . 1 . 3 17 Weapon 2 | . . . . . . 2 Tool/Special . | . . . . . . . Average Slot Usage (%) 98 | . 100 100 100 100 96 98 Engine 6 | . 14 14 14 14 2 . Core 4 | . . . . . 6 8 Treads 24 | . 28 28 28 28 13 30 Leg 7 | . . . . . 19 4 Device 10 | . 14 14 14 14 14 1 Storage 11 | . 14 14 14 14 9 9 Processor 2 | . . . . . 2 7 Protection 2 | . . . . . . 8 Energy Gun 13 | . 27 28 28 27 2 5 Energy Cannon 1 | . . . . . 5 . Ballistic Gun 10 | . . . . . 17 17 Slashing Weapon 1 | . . . . . . 3 Peak Build Rating 43 | 7 10 10 10 10 38 43 Average Rating 20 | 5 8 10 10 9 28 29 On Entrance 11 | . 7 10 10 10 10 31 Naked Turns . | . . . . . . . Heaviest Build 66 | 14 51 50 50 50 64 66 Greatest Support 82 | 40 40 40 40 40 82 82 Greatest Overweight (x) 5 | . 1 1 1 1 5 1 Average Overweight (x) . | . . 1 1 1 . . Largest Inventory Capacity 20 | 8 20 20 20 20 20 20 Average Capacity 19 | 7 19 20 20 20 20 20 Most Carried 20 | 5 11 10 11 13 20 20 Average Carried 14 | 1 8 10 10 11 16 19 Final Capacity 20 | 8 20 20 20 20 20 20 Final Carried 20 | 4 10 10 11 13 20 20 Class Distribution -------------------- 42% | Mutant 23% | Scavenger-Gunner 16% | Scavenger-Skirmisher 12% | Scavenger-Mutant Dominant Class ---------------- Mutant | -10/Materials Mutant | -10/Mines Mutant | -10/Exiles Mutant | -9/Mines Scavenger-Skirmisher | -8/Materials Scavenger-Mutant | -8/Garrison Resources | -11 -10 -10 -10 -9 -8 -8 ----------- Run | Yrd Mat Min Exi Min Mat Gar Matter Collected 3088 | 214 372 . . 45 1612 845 Remotely . | . . . . . . . Salvage Created 5187 | 20 573 14 . 15 3192 1373 Parts 290 | 8 38 3 . . 169 72 Haulers Intercepted 4 | . 1 . . . 3 . Recyclers Shooed 4 | . 2 . . . 2 . Parts Field Recycled . | . . . . . . . Retrieved Matter . | . . . . . . . Parts Self-Destructed . | . . . . . . . Prevented . | . . . . . . . Kills | -11 -10 -10 -10 -9 -8 -8 ------- Run | Yrd Mat Min Exi Min Mat Gar Combat Hostiles Destroyed 97 | . 10 . . 3 51 33 Guns 80 | . 6 . . 3 39 32 Cannons 7 | . . . . . 7 . AOE 8 | . 3 . . . 5 . Classes Destroyed 18 | 1 6 . . 1 9 1 Worker 9 | . 3 . . . 6 . Tunneler 4 | 2 1 1 . . . . Hauler 4 | . 1 . . . 3 . Recycler 4 | . 1 . . . 3 . Mechanic 2 | . . . . . 2 . Operator 2 | . . . . . 2 . Watcher 5 | . 2 . . . 2 1 Swarmer 14 | . 3 . . . . 11 Grunt 48 | . 7 . . . 29 12 Brawler 1 | . . . . . 1 . Duelist 3 | . . . . . 3 . Protector 2 | . . . . . 2 . Sentry 17 | . . . . . 12 5 Specialist 2 | . . . . . 2 . Hunter 3 | . . . . . 1 2 Programmer 3 | . . . . . . 3 Heavy 1 | . . . . . 1 . Assembled 3 | . . . . 3 . . Best Kill Streak 6 | 2 4 1 . 2 6 4 Combat Bots Only 6 | . 3 . . 2 6 4 Max Kills in Single Turn 2 | 1 2 1 . 1 2 2 Gunslinging 1 | . . . . . 1 1 Exploded 2 | . 1 . . . 2 . Melee . | . . . . . . . Uniques/NPCs Destroyed . | . . . . . . . Combat | -11 -10 -10 -10 -9 -8 -8 -------- Run | Yrd Mat Min Exi Min Mat Gar Hostile Shots Fired 520 | . 56 . . 5 196 263 Missed 131 | . 18 . . 2 62 49 Hits 389 | . 38 . . 3 134 214 Melee 4 | . . . . 1 3 . Projectile 385 | . 38 . . 2 131 214 Critical Strikes 21 | . 1 . . . 8 12 Part Disruptions 1 | . . . . 1 . . Damage Taken 6151 | . 461 16 . 51 2570 3053 Core 690 | . 96 16 . 4 231 343 Absorbed by Shields . | . . . . . . . Core Remaining (%) 76 | 100 . . . 53 . . Volleys Fired 336 | 7 51 2 . 10 157 109 Largest 3 | 2 2 2 . 2 3 3 Hottest 155 | 90 100 100 . 100 155 141 Shots Fired 890 | 14 99 4 . 18 463 292 Gun 809 | 14 96 4 . 17 386 292 Cannon 69 | . . . . . 69 . Launcher 11 | . 3 . . . 8 . Special 1 | . . . . 1 . . Kinetic 541 | . . . . . 324 217 Thermal 267 | 14 96 4 . 18 72 63 Explosive 11 | . 3 . . . 8 . Electromagnetic 71 | . . . . . 59 12 Robot Hit Streak 17 | 2 9 2 . 5 17 16 Robot Miss Streak 5 | 2 5 1 . 3 4 3 Penetration Max . | . . . . . . . Secondary Targets 14 | . 1 . . . 5 8 Max Gunslinging Chain 2 | . 1 . . . 1 2 Shots Hit Robots 590 | 7 59 2 . 10 299 213 Core Hits 254 | 2 32 1 . 6 143 70 Critical Kills 4 | . . . . . 3 1 Critical Parts Destroyed . | . . . . . . . Critical Strikes 16 | . 3 . . 1 8 4 Burn 10 | . 3 . . 1 3 3 Destroy 4 | . . . . . 3 1 Corrupt 2 | . . . . . 2 . Melee Attacks 35 | . . . . . . 35 Impact . | . . . . . . . Slashing 35 | . . . . . . 35 Piercing . | . . . . . . . Sneak Attacks 1 | . . . . . . 1 Combat Hostiles 1 | . . . . . . 1 Follow-up Attacks . | . . . . . . . Damage Inflicted 10057 | 94 971 25 . 124 5894 2949 Guns 7818 | 94 751 25 . 124 4068 2756 Cannons 1123 | . . . . . 1123 . Explosions 990 | . 220 . . . 703 67 Melee 126 | . . . . . . 126 Ramming . | . . . . . . . Kinetic 5257 | . . . . . 3502 1755 Thermal 2781 | 94 751 25 . 124 819 968 Explosive 806 | . 220 . . . 586 . Electromagnetic 1087 | . . . . . 987 100 Impact . | . . . . . . . Slashing 126 | . . . . . . 126 Piercing . | . . . . . . . Highest Corruption 6 | . . . . . . 6 Average Corruption 5 | . . . . . . 5 Corruption Purged . | . . . . . . . Corruption Blocked . | . . . . . . . Effects 43 | . . . . . . 43 Message Errors 6 | . . . . . . 6 Matter Fused 15 | . . . . . . 15 Heat Flow Errors 1 | . . . . . . 1 Energy Discharges 3 | . . . . . . 3 Parts Rejected 1 | . . . . . . 1 Parts Fused 1 | . . . . . . 1 Data Loss (minor) 10 | . . . . . . 10 Data Loss (major) 2 | . . . . . . 2 Misfires 2 | . . . . . . 2 Weapon Failures 2 | . . . . . . 2 Overload Shots . | . . . . . . . Overflow Damage 127 | . 6 . . . 82 39 Projectiles 38 | . . . . . 38 . Explosions 50 | . 6 . . . 44 . Melee 39 | . . . . . . 39 Knockbacks . | . . . . . . . Impact . | . . . . . . . Kinetic . | . . . . . . . Secondary . | . . . . . . . Self-Inflicted Damage 169 | . . . . . 169 . Shots 3 | . . . . . 3 . Rammed . | . . . . . . . Targets Rammed . | . . . . . . . Kicked . | . . . . . . . Crushed . | . . . . . . . Highest Temperature 325 | 210 310 . . 225 311 325 Average Temperature 93 | 108 101 . . 122 69 104 Received Heat Transfer 2300 | . 234 . . 20 1008 1038 Effects 8 | . 1 . . . 3 4 Energy Bleed 2 | . . . . . 1 1 Interference 5 | . . . . . 2 3 Matter Decay 1 | . 1 . . . . . Siege Activations . | . . . . . . . Martial Activations . | . . . . . . . Shielding Activations . | . . . . . . . Robots Disrupted 1 | . . . . . 1 . Combat Hostiles 1 | . . . . . 1 . Robots Corrupted . | . . . . . . . Combat Hostiles . | . . . . . . . Parts Fried 2 | . . . . . 2 . Impact Corruptions . | . . . . . . . Robots Melted 2 | . 1 . . . . 1 Combat Hostiles 2 | . 1 . . . . 1 Parts Melted 16 | . 4 . . . 5 7 Heat Transferred 7084 | 248 2167 74 . 444 2090 2061 Parts Sabotaged . | . . . . . . . Parts Stolen . | . . . . . . . Parts Stripped . | . . . . . . . Power Chain Reactions 4 | . . . . . 3 1 Alert | -11 -10 -10 -10 -9 -8 -8 ------- Run | Yrd Mat Min Exi Min Mat Gar Maximum Alert Level 5 | . 1 . . . 3 5 Low Security (%) 45 | 100 97 100 . 100 32 . Level 1 6 | . 2 . . . 16 . Level 2 11 | . . . . . 25 10 Level 3 20 | . . . . . 25 38 Level 4 15 | . . . . . . 50 Level 5 . | . . . . . . . High Security . | . . . . . . . Max Security . | . . . . . . . Sterilizations 1 | . . . . . 1 . Peak Influence 1601 | 10 213 61 . 1 905 1601 Initial 588 | . . 61 . . . 588 Average 496 | . 59 10 . . 419 1126 Influence Increases 3264 | 10 415 5 . 1 1612 1221 Destroy 0b10 Robot/C 1840 | . 200 . . . 980 660 Destroy 0b10 Robot/NC 165 | 10 40 5 . . 100 10 Destroy Leader 326 | . 56 . . . 250 20 Successful Hack 22 | . 6 . . . 16 . Select Force Hacks 90 | . 60 . . . 30 . Disable Machine 90 | . . . . . 90 . Anti-Garrison Action 300 | . . . . . . 300 Destroy Structure 281 | . 23 . . 1 86 171 Lose Combat Pursuer 150 | . 30 . . . 60 60 Influence Decreases 1705 | 10 256 164 . 1 706 568 Entered New Map 416 | . . 98 . . . 318 Time Decay 929 | 10 256 66 . 1 596 . Lost Part 300 | . . . . . 110 190 Lost Ally 60 | . . . . . . 60 Squads Dispatched 14 | . 3 . . 1 10 . Investigation 4 | . 2 . . . 2 . Extermination . | . . . . . . . Reinforcement 5 | . 1 . . 1 3 . Assault 3 | . . . . . 3 . Garrison 2 | . . . . . 2 . Intercept . | . . . . . . . Searches Triggered . | . . . . . . . Construction Impeded 1 | . . . . 1 . . Haulers Reinforced . | . . . . . . . Active Scanning Responses . | . . . . . . . Cargo Convoy Interrupts . | . . . . . . . Stealth | -11 -10 -10 -10 -9 -8 -8 --------- Run | Yrd Mat Min Exi Min Mat Gar Distress Signals 8 | . 2 . . . 6 . Communications Jammed . | . . . . . . . Distress Signals . | . . . . . . . Times Spotted 146 | . 20 . . 3 80 43 Peak Tracking Total 7 | . 5 . . 2 7 5 Tactical Retreats 6 | . 2 . . . 1 3 Traps | -11 -10 -10 -10 -9 -8 -8 ------- Run | Yrd Mat Min Exi Min Mat Gar Traps Triggered 2 | . . . . . . 2 Indirectly . | . . . . . . . Trap Hack Attempts . | . . . . . . . Triggered . | . . . . . . . Disarmed . | . . . . . . . Reprogrammed . | . . . . . . . Reused . | . . . . . . . Traps Extracted . | . . . . . . . Installed . | . . . . . . . Triggered . | . . . . . . . Machines | -11 -10 -10 -10 -9 -8 -8 ---------- Run | Yrd Mat Min Exi Min Mat Gar Machines Disabled 11 | . . . . . 6 5 Max in Single Turn 2 | . . . . . 2 1 Garrison Relay 4 | . . . . . . 4 Machines Repaired . | . . . . . . . Machines Dismantled . | . . . . . . . Machines Sabotaged . | . . . . . . . Overloaded Fab Kills . | . . . . . . . Hacking | -11 -10 -10 -10 -9 -8 -8 --------- Run | Yrd Mat Min Exi Min Mat Gar Machines Accessed 11 | . 3 1 1 1 4 1 Terminals 5 | . 1 . . 1 2 1 Fabricators . | . . . . . . . Repair Stations . | . . . . . . . Recycling Units 3 | . 2 . . . 1 . Scanalyzers . | . . . . . . . Garrison Access 1 | . . . . . 1 . Total Hacks 26 | . 10 1 1 3 9 2 Successful 15 | . 7 1 1 1 4 1 Failed 10 | . 2 . . 2 5 1 Catastrophic 3 | . . . . 1 2 . Database Lockouts 1 | . 1 . . . . . Manual 19 | . 8 . . 3 7 1 Terminals 20 | . 8 . . 3 7 2 Fabricators . | . . . . . . . Repair Stations . | . . . . . . . Recycling Units 3 | . 2 . . . 1 . Scanalyzers . | . . . . . . . Garrison Access 1 | . . . . . 1 . Terminal Hacks 9 | . 4 1 1 1 1 1 Record 1 | . . . 1 . . . Robot Schematic 1 | . . . . 1 . . Robot Analysis 2 | . 2 . . . . . Open Door 1 | . . 1 . . . . Branch Access Points 1 | . . . . . 1 . Emergency Access Points 1 | . . . . . . 1 Alert Level 1 | . 1 . . . . . Zone Layout 1 | . 1 . . . . . Fabricator Hacks . | . . . . . . . Repair Station Hacks . | . . . . . . . Recycling Unit Hacks . | . . . . . . . Scanalyzer . | . . . . . . . Garrison Access Hacks 1 | . . . . . 1 . Unlock Access 1 | . . . . . 1 . Unauthorized Hacks 5 | . 3 . . . 2 . Terminals 2 | . 1 . . . 1 . Botnet 1 | . . . . . 1 . Skim 1 | . 1 . . . . . Fabricators . | . . . . . . . Repair Stations . | . . . . . . . Recycling Units 3 | . 2 . . . 1 . Tunnel 3 | . 2 . . . 1 . Scanalyzers . | . . . . . . . Garrison Access . | . . . . . . . Data Cores Recovered 1 | . . . . . 1 . Used . | . . . . . . . Hacking Detections 6 | . 1 . . 1 3 1 Full Trace Events 2 | . . . . 1 1 . Feedback Events . | . . . . . . . Feedback Blocked . | . . . . . . . Robot Schematics Acquired 1 | . . . . 1 . . Robots Built . | . . . . . . . Authchips . | . . . . . . . Time . | . . . . . . . Total Robot Build Rating . | . . . . . . . Part Schematics Acquired . | . . . . . . . Parts Built . | . . . . . . . Authchips . | . . . . . . . Time . | . . . . . . . Total Part Build Rating . | . . . . . . . Parts Repaired . | . . . . . . . Time . | . . . . . . . Parts Recycled . | . . . . . . . Recycled Matter . | . . . . . . . Retrieved Matter . | . . . . . . . Retrieved Components . | . . . . . . . Parts Scanalyzed . | . . . . . . . Part Schematics Acquired . | . . . . . . . Parts Damaged . | . . . . . . . Bothacking | -11 -10 -10 -10 -9 -8 -8 ------------ Run | Yrd Mat Min Exi Min Mat Gar Used RIF Installer 1 | . . . . . . 1 Robots Hacked . | . . . . . . . Non-combat . | . . . . . . . Combat . | . . . . . . . Robot Hacks Applied . | . . . . . . . Relay Couplers Released 16 | . . . . . . 16 Machine Destruction 16 | . . . . . . 16 Fabnet Peak Effective % . | . . . . . . . Robots Rewired 3 | . . . . . . 3 Allies Hacked . | . . . . . . . Hacks Repelled . | . . . . . . . Allies | -11 -10 -10 -10 -9 -8 -8 -------- Run | Yrd Mat Min Exi Min Mat Gar Total Allies 3 | . . . . . . 3 Largest Group 3 | . . . . . . 3 Highest-Rated Group 66 | . . . . . . 66 Highest-Rated Ally 34 | . . . . . . 34 Total Orders . | . . . . . . . Ally Attacks 6 | . . . . . . 6 Total Damage 231 | . . . . . . 231 Kills . | . . . . . . . Allies Corrupted . | . . . . . . . Allies Melted . | . . . . . . . Intel | -11 -10 -10 -10 -9 -8 -8 ------- Run | Yrd Mat Min Exi Min Mat Gar Active Infowar (turns) 2194 | 23 454 . . 243 1474 . Terrain 1157 | . . . . . 1157 . Seismic 1037 | 23 454 . . 243 317 . Robot Analysis Total 2 | . 2 . . . . . Derelict Logs Recovered . | . . . . . . . Drone Launches . | . . . . . . . Drone Recoveries . | . . . . . . . Exploration | -11 -10 -10 -10 -9 -8 -8 ------------- Run | Yrd Mat Min Exi Min Mat Gar Turns Passed 6600 | 115 880 414 666 670 2057 1798 Spaces Moved 2670 | 55 295 171 277 262 835 775 Core 9 | 9 . . . . . . Treads 2119 | 46 295 171 277 262 383 685 Legs 542 | . . . . . 452 90 Wheels . | . . . . . . . Hover . | . . . . . . . Flight . | . . . . . . . Fastest Speed 50 | 50 160 240 240 240 115 120 Average Speed 194 | 142 235 240 240 240 179 157 Slowest Speed 470 | 160 240 240 240 240 470 240 Overloaded Moves . | . . . . . . . Propulsion Burnouts . | . . . . . . . Robots Hopped . | . . . . . . . Potential Cave-ins . | . . . . . . . Cave-ins Triggered . | . . . . . . . Exploration Rate (%) 57 | 5 48 55 59 65 77 90 Regions Visited 6 Branch Regions 3 Pre-discovered Areas 4 | . 2 . 1 . 1 . Known Exits Taken 1 | . . . . . 1 . Unknown Exits Taken 5 | 1 1 1 1 1 . . Scrap Searched 1 | . . 1 . . . . Spaces Dug 1 | . . . . 1 . . Terrain Destroyed 143 | . 30 . . 1 109 3 Melee . | . . . . . . . Projectile 2 | . . . . 1 1 . AOE 141 | . 30 . . . 108 3 Terrain Rammed . | . . . . . . . Walls Destroyed . | . . . . . . . Machines Disabled . | . . . . . . . Actions | -11 -10 -10 -10 -9 -8 -8 --------- Run | Yrd Mat Min Exi Min Mat Gar Total 3410 | 75 381 172 279 283 1135 1085 Wait 82 | 2 23 . . 5 27 25 Move 2665 | 54 294 170 276 261 835 775 Hop . | . . . . . . . Pick Up 71 | 5 7 . 1 3 31 24 Fast Attach 35 | 6 . . . . 15 14 Attach 30 | 1 . . . 1 14 14 Detach 11 | . . . . . 9 2 Swap 52 | . 4 . 1 3 16 28 Drop 54 | . 2 . 1 . 31 20 Fire 336 | 7 51 2 . 10 157 109 Melee 35 | . . . . . . 35 Ram . | . . . . . . . Kick . | . . . . . . . Crush . | . . . . . . . Escape Stasis 2 | . . . . . . 2 Rewire 37 | . . . . . . 37 Trap . | . . . . . . . Miscellaneous . | . . . . . . . Route ------- -11/Scrapyard -10/Materials (discovered 3 exits: [*Mat x2] / *Min) -10/Mines -10/Exiles (discovered 2 exits: *Min x2) -9/Mines -8/Materials (discovered 3 exits: [*Fac x2] / Gar) -8/Garrison (discovered 3 exits: [*Mat x3]) History --------- Turn | Location | Event 38 | -11/Scrapyard | Discovered new exit (range 15) 116 | -11/Scrapyard | Entered Materials 249 | -10/Materials | Central database locked down 301 | -10/Materials | Build established: Mutant 717 | -10/Materials | Discovered new exit (range 4) 931 | -10/Materials | Discovered new exit (range 16) 958 | -10/Materials | Discovered new exit (range 11) 996 | -10/Materials | Entered Mines 1005 | -10/Mines | Met a Derelict who couldn't figure out how to use a Trap Extractor 1061 | -10/Mines | Met a Derelict bent on vengeance 1382 | -10/Mines | Deemed a non-threat by the Exiles lab entrance 1401 | -10/Mines | Discovered new exit (range 5) 1410 | -10/Mines | Entered Exiles 1446 | -10/Exiles | Discovered new exit (range 15) 1470 | -10/Exiles | Met 8R-AWN 1504 | -10/Exiles | Met EX-HEX 1602 | -10/Exiles | Met EX-DEC 1617 | -10/Exiles | Learned location of Zion (-6) 2049 | -10/Exiles | Discovered new exit (range 14) 2076 | -10/Exiles | Entered Mines 2347 | -9/Mines | Assembled infested the area 2722 | -9/Mines | Discovered new exit (range 6) 2746 | -9/Mines | Entered Materials 2746 | -8/Materials | Evolved 4 slots: Propulsion x2, Utility x1, Weapon x1 2888 | -8/Materials | Lost 3 parts (1p2n) 3131 | -8/Materials | Build established: Scavenger-Gunner 3645 | -8/Materials | Build established: Scavenger-Skirmisher 3946 | -8/Materials | First assault squad dispatched 4079 | -8/Materials | Lost 3 parts (1n2w) 4303 | -8/Materials | Discovered new exit (range 6) 4657 | -8/Materials | Garrison activated, responded to threat 4718 | -8/Materials | Sterilization system engaged 4718 | -8/Materials | Non-combat units ordered to evacuate 4745 | -8/Materials | Discovered new exit (range 8) 4803 | -8/Materials | Identified exit to Garrison 4803 | -8/Materials | Entered Garrison 4843 | -8/Garrison | Triggered checkpoint 4880 | -8/Garrison | Garrison Relay disabled 4933 | -8/Garrison | Triggered checkpoint 4951 | -8/Garrison | Core integrity fell below 50% 4987 | -8/Garrison | Lost 3 parts (1n2w) 4992 | -8/Garrison | Discovered new exit (range 5) 5073 | -8/Garrison | Lost 5 parts (1p2n2w) 5255 | -8/Garrison | Triggered checkpoint 5360 | -8/Garrison | Lost 4 parts (2n2w) 5539 | -8/Garrison | Discovered new exit (range 12) 5629 | -8/Garrison | Triggered checkpoint 5681 | -8/Garrison | Garrison Relay disabled 5815 | -8/Garrison | Triggered checkpoint 5967 | -8/Garrison | Triggered checkpoint 5985 | -8/Garrison | Garrison Relay disabled 6055 | -8/Garrison | Triggered checkpoint 6070 | -8/Garrison | Core integrity fell below 20% 6227 | -8/Garrison | Triggered checkpoint 6275 | -8/Garrison | Garrison Relay disabled 6378 | -8/Garrison | Lost 4 parts (2n2w) 6544 | -8/Garrison | Discovered new exit (range 5) 6580 | -8/Garrison | Spotted B-75 Beast 6591 | -8/Garrison | Installed Relay Interface Framework 6601 | -8/Garrison | Destroyed by B-75 Beast with Heavy Plasma Cannon Last Messages --------------- 06463_ Dropped Lgt. Ion Engine. 06464_ System corrupted: Lgt. Assault Rifle jammed. 06467_ Machine disabled. 06473_ Destroyed Wheel. 06476_ Overheating: Energy bleed (-50). 06482_ Attempting to rewire G-47 Trooper. 06496_ G-47 Trooper rewired. 06499_ System corrupted: Component data lost. 06515_ System corrupted: Matter fused (-8). 06541_ 3LXC42A8QDPSV6NLUD6PLYRU5HY|ORI&C5ETI1 06544_ EXIT=FOUND 06586_ Triggered Alarm Trap. 06586_ An alarm sounds. Initiating installation procedure... 06591_ Relay Interface Framework installed. 06595_ Trooper 3b destroyed. 06595_ Grenadier 3a Cmb. Airjet blasted off. 06598_ Grenadier 3a destroyed. 06601_ Acquired 5 matter. Map ----- +----------------------------------------------------+ | | | | | | | ?????????????????????????????????????????????????? | | ?????????????????????????????????????????????????? | | ?????????????????????????????????????????????????? | | ?????????????????????????????????????????????????? | | ?????????????????????????????????????????????????? | | ?????????????????????????????????????????????????? | | ?????????????????????????????????????????????????? | | ?????????????????????????????????????????????????? | | ?????????????????????????????????????????????????? | | ?????????#######?????????????????????????????????? | | ?????????#""""""######???????????????????????????? | | ?????????#" " #???????????????????????????? | | ###??????#" #???????????????????????????? | | ""####???#" #???????????????????????????? | | """#?###" " ######?????????????????????## | | * "#?#"""" """ #?????????????????????#" | | ""#????# " #### #?????????????????###### | | ""#????# #?##+###????????#??????# | | "#????# #?#! !#??????! !#?????# #### | | """#????# #?#! !#####? !#?????# #??? | | #????# #?## #%# # !#?????# ###? | | #????## #########??# ==% #?????# #? | | ### #?????# #??????????#@=%* #?????# +? | | #%# #???###"##???####### [BB #^ !#?????# #? | | * #???# #???#"""" # BB #????!#?????# ###? | | [ = #???# < #???#" #???????????# #??? | | %###???# #???#"""" # # #???+???????# #??? | | ###?????### #???####### ######???????????# #??? | | ########### #?????????# #????????????????# #??? | | " +?????????# #????????????????# #??? | | #### ###### #?????????# #????????????????# #??? | | #### #????# #?????????# #????????????????# #??? | | "# # #????# #????+????#Y #??????##+#??????# #??? | | !# #"#????# ????????? ?????? #??????# #### | | !! [#????# ???????? ?????? #??????# | | !+ #????#"####???????# #??????# #??????# | | + #????# #??????????# #??????# #??????# ### | | #^^###????# #??????????# #??????# #??????# #?? | | ##^^#??????# #??????????# #??????# #??????# +?? | | ?# ########"###### #???# #??????# #??????# #?# | | ?# = +???+ #??????# ######## #?? | | ?######## ## ## #####???# #??????# ## ##= #?? | | ????????# ## ## ##??????# #?????## ## ## !##? | | ????????# !# !# !#??????# ####### [= ## | | ????????# !# !# !#??????# | | ????????# !# !# !#??????# | | ????????#+##+##+##??????##+####### ## ## ## | +----------------------------------------------------+ Best States ------------- Heat Dissipation 50 Energy Generation 16 Energy Capacity 290 Matter Stores 300 Matter Capacity 300 Sight Range 16 Terrain Scan Range 16 Terrain Scan Density 10 Armor Coverage 300 Evasion (%) 55 Targeting Accuracy 8 Recoil Reduction 4 Item Schematics ----------------- None Robot Schematics ------------------ S-10 Pest | -9/Mines | Hacked Fabricated ------------ Nothing Repaired ---------- Nothing Alien Tech Used ----------------- None Achievements -------------- None Challenges ------------ None Game ------ Seed CentriumPhaseReconfigurator Manual? 0 Play Time 00:45:59 Cumulative 217.7 hours Start 2025.05.19 @ 14:30:28 End 2025.05.19 @ 15:21:47 Sessions 1 Manual Loads 0 Difficulty Rogue Special Mode None Game No. 121 Rogue 113 Adventurer 8 Explorer 0 Win Type - Total 7 Types 3/0/2/1/0/0/0/0/0/1 Lore% 80 Gallery% 76 Achievement% 64 Wizard Run 0 Options --------- Layout 2 ASCII 0 Keyboard 1 Movement Numpad Keybinds 1 Fullscreen 1 Font 48/Smallcaps Map View 50x44 Zoom Use 0% Tactical HUD 1 Map Filters NONE Filters NONE Steam 1 RUN: 13030b36-76e2-4748-a8ed-1b39f98cdb04